fUST/lending_fUST_20240429
["ID","MTS","AMOUNT","RATE_DAILY","PERIOD"]
[324854613,1714373477647,-1626.12,0.00016164,2]
[324854614,1714373477657,-500.0,0.00016164,2]
[324854615,1714373477667,-500.0,0.00016164,2]
[324854616,1714373477677,-336.89804527,0.00016164,2]
[324854617,1714373477686,-611.54,0.00016164,2]
[324854618,1714373477696,-559.33,0.00016164,2]
[324854619,1714373477706,-608.08,0.00016164,2]
[324854620,1714373477716,-500.0,0.00016164,2]
[324854621,1714373477726,-500.0,0.00016164,2]
[324854622,1714373477739,-687.07,0.00016164,2]
[324854623,1714373477749,-500.0,0.00016164,2]
[324854624,1714373477760,-504.72,0.00016164,2]
[324854625,1714373477771,-500.0,0.00016164,2]
[324854626,1714373477781,-832.64,0.00016164,2]
[324854627,1714373477791,-500.0,0.00016164,2]
[324854628,1714373477802,-515.01,0.00016164,2]
[324854629,1714373477812,-1105.2,0.00016164,2]
[324854630,1714373477823,-630.39,0.00016164,2]
[324854631,1714373477834,-500.0,0.00016164,2]
[324854632,1714373477844,-604.09,0.00016164,2]
[324854633,1714373477855,-500.0,0.00016164,2]
[324854634,1714373477865,-500.0,0.00016164,2]
[324854635,1714373477875,-292.72638295,0.00016164,2]
[324854636,1714373477886,-693.58,0.00016164,2]
[324854637,1714373477896,-598.14,0.00016164,2]
[324854638,1714373477906,-591.07,0.00016164,2]
[324854639,1714373477915,-500.0,0.00016164,2]
[324854640,1714373477925,-673.38,0.00016164,2]
[324854641,1714373477935,-533.22,0.00016164,2]
[324854642,1714373477945,-1230.36,0.00016164,2]
[324854643,1714373477954,-500.0,0.00016164,2]
[324854644,1714373477964,-1147.49,0.00016164,2]
[324854645,1714373477974,-500.0,0.00016164,2]
[324854646,1714373477988,-1302.49,0.00016164,2]
[324854647,1714373477999,-844.49,0.00016164,2]
[324854648,1714373478010,-500.0,0.00016164,2]
[324854649,1714373478020,-614.75,0.00016164,2]
[324854650,1714373478029,-1388.78,0.00016164,2]
[324854651,1714373478039,-623.41,0.00016164,2]
[324854652,1714373478049,-797.81,0.00016164,2]
[324854653,1714373478059,-500.0,0.00016164,2]
[324854654,1714373478070,-590.29,0.00016164,2]
[324854655,1714373478080,-500.0,0.00016164,2]
[324854656,1714373478090,-807.83,0.00016164,2]
[324854657,1714373478100,-607.0,0.00016164,2]
[324854658,1714373478109,-500.0,0.00016164,2]
[324854659,1714373478119,-940.83,0.00016164,2]
[324854660,1714373478128,-500.0,0.00016164,2]
[324854661,1714373478138,-500.0,0.00016164,2]
[324854662,1714373478148,-782.16,0.00016164,2]
[324854663,1714373478157,-500.0,0.00016164,2]
[324854664,1714373478167,-520.06,0.00016164,2]
[324854665,1714373478176,-500.0,0.00016164,2]
[324854666,1714373478186,-500.0,0.00016164,2]
[324854667,1714373478199,-564.0,0.00016164,2]
[324854668,1714373478211,-851.11,0.00016164,2]
[324854669,1714373478222,-510.47,0.00016164,2]
[324854670,1714373478234,-500.0,0.00016164,2]
[324854671,1714373478244,-500.0,0.00016164,2]
[324854672,1714373478253,-1533.33,0.00016164,2]
[324854673,1714373478263,-1895.96,0.00016164,2]
[324854674,1714373478272,-1322.31,0.00016164,2]
[324854675,1714373478282,-500.0,0.00016164,2]
[324854676,1714373478291,-500.0,0.00016164,2]
[324854677,1714373478301,-500.0,0.00016164,2]
[324854678,1714373478311,-1437.53,0.00016164,2]
[324854679,1714373478320,-500.0,0.00016164,2]
[324854680,1714373478330,-1191.98,0.00016164,2]
[324854681,1714373478341,-500.0,0.00016164,2]
[324854682,1714373478351,-1134.6,0.00016164,2]
[324854683,1714373478360,-1094.75,0.00016164,2]
[324854684,1714373478369,-510.32,0.00016164,2]
[324854685,1714373478379,-2552.95,0.00016164,2]
[324854686,1714373478388,-1704.43,0.00016164,2]
[324854687,1714373478399,-1486.42,0.00016164,2]
[324854688,1714373478408,-500.0,0.00016164,2]
[324854689,1714373478418,-500.0,0.00016164,2]
[324854690,1714373478428,-500.0,0.00016164,2]
[324854691,1714373478437,-500.0,0.00016164,2]
[324854692,1714373478447,-500.0,0.00016164,2]
[324854693,1714373478456,-500.0,0.00016164,2]
[324854694,1714373478466,-725.26,0.00016164,2]
[324854695,1714373478476,-844.8,0.00016164,2]
[324854696,1714373478490,-663.85,0.00016164,2]
[324854697,1714373478499,-590.93,0.00016164,2]
[324854698,1714373478509,-500.0,0.00016164,2]
[324854699,1714373478519,-646.42877873,0.00016164,2]
[324854700,1714373478530,-500.0,0.00016164,2]
[324854701,1714373478540,-500.0,0.00016164,2]
[324854702,1714373478550,-963.94,0.00016164,2]
[324854703,1714373478560,-500.0,0.00016164,2]
[324854704,1714373478571,-790.18,0.00016164,2]
[324854705,1714373478581,-1385.15,0.00016164,2]
[324854706,1714373478591,-904.16,0.00016164,2]
[324854707,1714373478601,-556.73,0.00016164,2]
[324854708,1714373478611,-500.0,0.00016164,2]
[324854709,1714373478620,-2612.66,0.00016164,2]
[324854710,1714373478629,-670.19,0.00016164,2]
[324854711,1714373478639,-5705.05,0.00016164,2]
[324854712,1714373478648,-500.0,0.00016164,2]
[324854713,1714373478658,-3685.88,0.00016164,2]
[324854714,1714373478667,-500.0,0.00016164,2]
[324854715,1714373478678,-474.10410609,0.00016164,2]
[324854716,1714373478688,-500.0,0.00016164,2]
[324854717,1714373478699,-3055.4,0.00016164,2]
[324854718,1714373478709,-500.0,0.00016164,2]
[324854719,1714373478720,-943.99,0.00016164,2]
[324854720,1714373478730,-500.0,0.00016164,2]
[324854721,1714373478746,-500.0,0.00016164,2]
[324854722,1714373478756,-676.52,0.00016164,2]
[324854723,1714373478766,-2057.47,0.00016164,2]
[324854724,1714373478777,-598.25,0.00016164,2]
[324854725,1714373478787,-1272.21,0.00016164,2]
[324854726,1714373478798,-7316.87,0.00016164,2]
[324854727,1714373478808,-500.0,0.00016164,2]
[324854728,1714373478819,-726.9,0.00016164,2]
[324854729,1714373478829,-500.0,0.00016164,2]
[324854730,1714373478840,-797.11,0.00016164,2]
[324854731,1714373478850,-604.72,0.00016164,2]
[324854732,1714373478860,-500.0,0.00016164,2]
[324854733,1714373478870,-1382.46,0.00016164,2]
[324854734,1714373478881,-2899.35,0.00016164,2]
[324854735,1714373478891,-643.79,0.00016164,2]
[324854736,1714373478900,-1036.38,0.00016164,2]
[324854737,1714373478910,-500.0,0.00016164,2]
[324854738,1714373478919,-500.0,0.00016164,2]
[324854739,1714373478928,-500.0,0.00016164,2]
[324854740,1714373478937,-500.0,0.00016164,2]
[324854741,1714373478946,-3783.63,0.00016164,2]
[324854742,1714373478956,-567.55,0.00016164,2]
[324854743,1714373478966,-500.0,0.00016164,2]
[324854744,1714373478976,-1762.71,0.00016164,2]
[324854745,1714373478987,-544.02,0.00016164,2]
[324854746,1714373478998,-500.0,0.00016164,2]
[324854747,1714373479008,-909.69,0.00016164,2]
[324854748,1714373479018,-500.0,0.00016164,2]
[324854749,1714373479028,-1544.95,0.00016164,2]
[324854750,1714373479038,-566.35,0.00016164,2]
[324854751,1714373479048,-1632.08,0.00016164,2]
[324854752,1714373479059,-2536.93,0.00016164,2]
[324854753,1714373479069,-16167.34,0.00016164,2]
[324854754,1714373479079,-3184.94,0.00016164,2]
[324854755,1714373479089,-844.47,0.00016164,2]
[324854756,1714373479098,-1248.72,0.00016164,2]
[324854757,1714373479108,-705.06,0.00016164,2]
[324854758,1714373479118,-639.19114667,0.00016164,2]
[324854759,1714373479128,-5367.9,0.00016164,2]
[324854760,1714373479138,-500.0,0.00016164,2]
[324854761,1714373479148,-603.55,0.00016164,2]
[324854762,1714373479157,-1338.49,0.00016164,2]
[324854763,1714373479167,-500.0,0.00016164,2]
[324854764,1714373479177,-752.29,0.00016164,2]
[324854765,1714373479187,-803.38,0.00016164,2]
[324854766,1714373479202,-500.0,0.00016164,2]
[324854767,1714373479212,-12574.48,0.00016164,2]
[324854768,1714373479222,-12192.24,0.00016164,2]
[324854769,1714373479231,-500.0,0.00016164,2]
[324854770,1714373479246,-998.22,0.00016164,2]
[324854771,1714373479256,-589.37,0.00016164,2]
[324854772,1714373479267,-5507.92,0.00016164,2]
[324854773,1714373479277,-992.33,0.00016164,2]
[324854774,1714373479287,-320.0,0.00016329,2]
[324854775,1714373479298,-587.0,0.00016334,2]
[324854776,1714373479310,-620.00000094,0.00016366,2]
[324854777,1714373479319,-500.0,0.00016438,2]
[324854778,1714373479329,-500.0,0.00016438,2]
[324854779,1714373479339,-500.0,0.00016438,2]
[324854780,1714373479348,-523.85,0.00016438,2]
[324854781,1714373479358,-508.84,0.00016438,2]
[324854782,1714373479473,-500.0,0.00016438,2]
[324854783,1714373479484,-500.0,0.00016438,2]
[324854784,1714373479500,-500.0,0.00016438,2]
[324854785,1714373479510,-625.82,0.00016438,2]
[324854786,1714373479520,-500.0,0.00016438,2]
[324854787,1714373479531,-500.0,0.00016438,2]
[324854788,1714373479541,-500.0,0.00016438,2]
[324854789,1714373479551,-500.0,0.00016438,2]
[324854790,1714373479561,-1626.12,0.00016438,2]
[324854791,1714373479571,-500.0,0.00016438,2]
[324854792,1714373479582,-500.0,0.00016438,2]
[324854793,1714373479592,-611.54,0.00016438,2]
[324854794,1714373479602,-559.33,0.00016438,2]
[324854795,1714373479612,-608.08,0.00016438,2]
[324854796,1714373479622,-500.0,0.00016438,2]
[324854797,1714373479632,-500.0,0.00016438,2]
[324854798,1714373479642,-687.07,0.00016438,2]
[324854799,1714373479652,-500.0,0.00016438,2]
[324854800,1714373479662,-504.72,0.00016438,2]
[324854801,1714373479671,-500.0,0.00016438,2]
[324854802,1714373479681,-832.64,0.00016438,2]
[324854803,1714373479691,-516.13496781,0.00016438,2]
[324854804,1714373479701,-515.01,0.00016438,2]
[324854805,1714373479711,-1105.2,0.00016438,2]
[324854806,1714373479721,-630.39,0.00016438,2]
[324854807,1714373479731,-500.0,0.00016438,2]
[324854808,1714373479747,-604.09,0.00016438,2]
[324854809,1714373479756,-500.0,0.00016438,2]
[324854810,1714373479766,-500.0,0.00016438,2]
[324854811,1714373479776,-693.58,0.00016438,2]
[324854812,1714373479786,-598.14,0.00016438,2]
[324854813,1714373479796,-591.07,0.00016438,2]
[324854814,1714373479806,-500.0,0.00016438,2]
[324854815,1714373479816,-673.38,0.00016438,2]
[324854816,1714373479826,-533.22,0.00016438,2]
[324854817,1714373479836,-1230.36,0.00016438,2]
[324854818,1714373479847,-500.0,0.00016438,2]
[324854819,1714373479857,-1147.49,0.00016438,2]
[324854820,1714373479867,-500.0,0.00016438,2]
[324854821,1714373479877,-1302.49,0.00016438,2]
[324854822,1714373479887,-844.49,0.00016438,2]
[324854823,1714373479898,-500.0,0.00016438,2]
[324854824,1714373479908,-614.75,0.00016438,2]
[324854825,1714373479918,-1388.78,0.00016438,2]
[324854826,1714373479927,-623.41,0.00016438,2]
[324854827,1714373479937,-797.81,0.00016438,2]
[324854828,1714373479947,-637.50915963,0.00016438,2]
[324854829,1714373479957,-590.29,0.00016438,2]
[324854830,1714373479968,-500.0,0.00016438,2]
[324854831,1714373479977,-807.83,0.00016438,2]
[324854832,1714373479991,-607.0,0.00016438,2]
[324854833,1714373480001,-500.0,0.00016438,2]
[324854834,1714373480011,-940.83,0.00016438,2]
[324854835,1714373480022,-588.45482557,0.00016438,2]
[324854836,1714373480032,-500.0,0.00016438,2]
[324854837,1714373480043,-782.16,0.00016438,2]
[324854838,1714373480053,-500.0,0.00016438,2]
[324854839,1714373480063,-520.06,0.00016438,2]
[324854840,1714373480073,-500.0,0.00016438,2]
[324854841,1714373480084,-500.0,0.00016438,2]
[324854842,1714373480094,-564.0,0.00016438,2]
[324854843,1714373480105,-851.11,0.00016438,2]
[324854844,1714373480116,-510.47,0.00016438,2]
[324854845,1714373480127,-500.0,0.00016438,2]
[324854846,1714373480138,-500.0,0.00016438,2]
[324854847,1714373480148,-1533.33,0.00016438,2]
[324854848,1714373480158,-1895.96,0.00016438,2]
[324854849,1714373480168,-1322.31,0.00016438,2]
[324854850,1714373480179,-500.0,0.00016438,2]
[324854851,1714373480190,-500.0,0.00016438,2]
[324854852,1714373480201,-500.0,0.00016438,2]
[324854853,1714373480212,-1437.53,0.00016438,2]
[324854854,1714373480223,-500.0,0.00016438,2]
[324854855,1714373480233,-1191.98,0.00016438,2]
[324854856,1714373480246,-500.0,0.00016438,2]
[324854857,1714373480256,-1134.6,0.00016438,2]
[324854858,1714373480266,-1094.75,0.00016438,2]
[324854859,1714373480276,-510.32,0.00016438,2]
[324854860,1714373480287,-2552.95,0.00016438,2]
[324854861,1714373480298,-1704.43,0.00016438,2]
[324854862,1714373480309,-1486.42,0.00016438,2]
[324854863,1714373480319,-500.0,0.00016438,2]
[324854864,1714373480329,-500.0,0.00016438,2]
[324854865,1714373480339,-500.0,0.00016438,2]
[324854866,1714373480349,-500.0,0.00016438,2]
[324854867,1714373480359,-500.0,0.00016438,2]
[324854868,1714373480370,-500.0,0.00016438,2]
[324854869,1714373480380,-725.26,0.00016438,2]
[324854870,1714373480390,-844.8,0.00016438,2]
[324854871,1714373480401,-663.85,0.00016438,2]
[324854872,1714373480412,-590.93,0.00016438,2]
[324854873,1714373480422,-500.0,0.00016438,2]
[324854874,1714373480431,-500.0,0.00016438,2]
[324854875,1714373480441,-500.0,0.00016438,2]
[324854876,1714373480451,-963.94,0.00016438,2]
[324854877,1714373480462,-500.0,0.00016438,2]
[324854878,1714373480472,-790.18,0.00016438,2]
[324854879,1714373480483,-1385.15,0.00016438,2]
[324854880,1714373480496,-904.16,0.00016438,2]
[324854881,1714373480506,-556.73,0.00016438,2]
[324854882,1714373480515,-500.0,0.00016438,2]
[324854883,1714373480526,-2612.66,0.00016438,2]
[324854884,1714373480536,-670.19,0.00016438,2]
[324854885,1714373480546,-5705.05,0.00016438,2]
[324854886,1714373480556,-500.0,0.00016438,2]
[324854887,1714373480566,-3685.88,0.00016438,2]
[324854888,1714373480576,-500.0,0.00016438,2]
[324854889,1714373480586,-500.0,0.00016438,2]
[324854890,1714373480597,-3055.4,0.00016438,2]
[324854891,1714373480607,-500.0,0.00016438,2]
[324854892,1714373480617,-943.99,0.00016438,2]
[324854893,1714373480628,-500.0,0.00016438,2]
[324854894,1714373480639,-500.0,0.00016438,2]
[324854895,1714373480648,-676.52,0.00016438,2]
[324854896,1714373480658,-2057.47,0.00016438,2]
[324854897,1714373480669,-598.25,0.00016438,2]
[324854898,1714373480679,-1272.21,0.00016438,2]
[324854899,1714373480690,-7316.87,0.00016438,2]
[324854900,1714373480700,-511.0,0.00016438,2]
[324854901,1714373480710,-726.9,0.00016438,2]
[324854902,1714373480722,-500.0,0.00016438,2]
[324854903,1714373480732,-797.11,0.00016438,2]
[324854904,1714373480746,-604.72,0.00016438,2]
[324854905,1714373480757,-500.0,0.00016438,2]
[324854906,1714373480767,-1382.46,0.00016438,2]
[324854907,1714373480778,-2899.35,0.00016438,2]
[324854908,1714373480789,-643.79,0.00016438,2]
[324854909,1714373480800,-1036.38,0.00016438,2]
[324854910,1714373480811,-500.0,0.00016438,2]
[324854911,1714373480821,-500.0,0.00016438,2]
[324854912,1714373480831,-500.0,0.00016438,2]
[324854913,1714373480843,-3783.63,0.00016438,2]
[324854914,1714373480853,-500.0,0.00016438,2]
[324854915,1714373480864,-567.55,0.00016438,2]
[324854916,1714373480875,-500.0,0.00016438,2]
[324854917,1714373480885,-1762.71,0.00016438,2]
[324854918,1714373480895,-544.02,0.00016438,2]
[324854919,1714373480906,-500.0,0.00016438,2]
[324854920,1714373480916,-909.69,0.00016438,2]
[324854921,1714373480927,-500.0,0.00016438,2]
[324854922,1714373480939,-1544.95,0.00016438,2]
[324854923,1714373480949,-566.35,0.00016438,2]
[324854924,1714373480960,-1632.08,0.00016438,2]
[324854925,1714373480970,-2536.93,0.00016438,2]
[324854926,1714373480980,-16167.34,0.00016438,2]
[324854927,1714373480993,-3184.94,0.00016438,2]
[324854928,1714373481003,-844.47,0.00016438,2]
[324854929,1714373481013,-1248.72,0.00016438,2]
[324854930,1714373481024,-705.06,0.00016438,2]
[324854931,1714373481034,-5367.9,0.00016438,2]
[324854932,1714373481044,-500.0,0.00016438,2]
[324854933,1714373481055,-603.55,0.00016438,2]
[324854934,1714373481064,-1338.49,0.00016438,2]
[324854935,1714373481080,-500.0,0.00016438,2]
[324854936,1714373481092,-752.29,0.00016438,2]
[324854937,1714373481103,-803.38,0.00016438,2]
[324854938,1714373481115,-500.0,0.00016438,2]
[324854939,1714373481125,-12574.48,0.00016438,2]
[324854940,1714373481135,-12192.24,0.00016438,2]
[324854941,1714373481145,-500.0,0.00016438,2]
[324854942,1714373481156,-998.22,0.00016438,2]
[324854943,1714373481166,-589.37,0.00016438,2]
[324854944,1714373481176,-5507.92,0.00016438,2]
[324854945,1714373481187,-992.33,0.00016438,2]
[324854946,1714373481204,-402.56689138,0.00016438,2]
[324854947,1714373481217,-587.0,0.00016453,2]
[324854948,1714373481228,-272.7929159,0.000165,2]
[324854949,1714373481240,-1332.9,0.0001652,3]
[324854950,1714373481252,-500.0,0.00016712,2]
[324854951,1714373481263,-500.0,0.00016712,2]
[324854952,1714373481273,-500.0,0.00016712,2]
[324854953,1714373481283,-523.85,0.00016712,2]
[324854954,1714373481294,-508.84,0.00016712,2]
[324854955,1714373481305,-500.0,0.00016712,2]
[324854956,1714373481316,-500.0,0.00016712,2]
[324854957,1714373481326,-500.0,0.00016712,2]
[324854958,1714373481336,-625.82,0.00016712,2]
[324854959,1714373481346,-500.0,0.00016712,2]
[324854960,1714373481356,-500.0,0.00016712,2]
[324854961,1714373481368,-500.0,0.00016712,2]
[324854962,1714373481379,-500.0,0.00016712,2]
[324854963,1714373481389,-1626.12,0.00016712,2]
[324854964,1714373481401,-500.0,0.00016712,2]
[324854965,1714373481412,-500.0,0.00016712,2]
[324854966,1714373481422,-611.54,0.00016712,2]
[324854967,1714373481433,-559.33,0.00016712,2]
[324854968,1714373481445,-608.08,0.00016712,2]
[324854969,1714373481455,-500.0,0.00016712,2]
[324854970,1714373481466,-500.0,0.00016712,2]
[324854971,1714373481477,-687.07,0.00016712,2]
[324854972,1714373481492,-500.0,0.00016712,2]
[324854973,1714373481504,-504.72,0.00016712,2]
[324854974,1714373481514,-500.0,0.00016712,2]
[324854975,1714373481527,-832.64,0.00016712,2]
[324854976,1714373481538,-515.01,0.00016712,2]
[324854977,1714373481549,-1105.2,0.00016712,2]
[324854978,1714373481561,-630.39,0.00016712,2]
[324854979,1714373481571,-500.0,0.00016712,2]
[324854980,1714373481582,-604.09,0.00016712,2]
[324854981,1714373481592,-500.0,0.00016712,2]
[324854982,1714373481603,-500.0,0.00016712,2]
[324854983,1714373481613,-693.58,0.00016712,2]
[324854984,1714373481623,-598.14,0.00016712,2]
[324854985,1714373481634,-591.07,0.00016712,2]
[324854986,1714373481645,-500.0,0.00016712,2]
[324854987,1714373481655,-673.38,0.00016712,2]
[324854988,1714373481665,-533.22,0.00016712,2]
[324854989,1714373481675,-1230.36,0.00016712,2]
[324854990,1714373481684,-500.0,0.00016712,2]
[324854991,1714373481694,-1147.49,0.00016712,2]
[324854992,1714373481704,-500.0,0.00016712,2]
[324854993,1714373481714,-1302.49,0.00016712,2]
[324854994,1714373481724,-844.49,0.00016712,2]
[324854995,1714373481734,-500.0,0.00016712,2]
[324854996,1714373481751,-614.75,0.00016712,2]
[324854997,1714373481761,-1388.78,0.00016712,2]
[324854998,1714373481771,-623.41,0.00016712,2]
[324854999,1714373481782,-797.81,0.00016712,2]
[324855000,1714373481792,-590.29,0.00016712,2]
[324855001,1714373481803,-500.0,0.00016712,2]
[324855002,1714373481813,-807.83,0.00016712,2]
[324855003,1714373481822,-607.0,0.00016712,2]
[324855004,1714373481832,-500.0,0.00016712,2]
[324855005,1714373481842,-940.83,0.00016712,2]
[324855006,1714373481852,-500.0,0.00016712,2]
[324855007,1714373481863,-782.16,0.00016712,2]
[324855008,1714373481873,-500.0,0.00016712,2]
[324855009,1714373481884,-520.06,0.00016712,2]
[324855010,1714373481894,-500.0,0.00016712,2]
[324855011,1714373481904,-500.0,0.00016712,2]
[324855012,1714373481915,-564.0,0.00016712,2]
[324855013,1714373481925,-851.11,0.00016712,2]
[324855014,1714373481935,-510.47,0.00016712,2]
[324855015,1714373481945,-321.26916212,0.00016712,2]
[324855016,1714373481955,-500.0,0.00016712,2]
[324855017,1714373481966,-1533.33,0.00016712,2]
[324855018,1714373481976,-1895.96,0.00016712,2]
[324855019,1714373481989,-1322.31,0.00016712,2]
[324855020,1714373481999,-500.0,0.00016712,2]
[324855021,1714373482011,-500.0,0.00016712,2]
[324855022,1714373482021,-1437.53,0.00016712,2]
[324855023,1714373482032,-500.0,0.00016712,2]
[324855024,1714373482042,-1191.98,0.00016712,2]
[324855025,1714373482053,-500.0,0.00016712,2]
[324855026,1714373482065,-1134.6,0.00016712,2]
[324855027,1714373482076,-1094.75,0.00016712,2]
[324855028,1714373482086,-510.32,0.00016712,2]
[324855029,1714373482097,-2552.95,0.00016712,2]
[324855030,1714373482107,-1704.43,0.00016712,2]
[324855031,1714373482117,-1486.42,0.00016712,2]
[324855032,1714373482127,-500.0,0.00016712,2]
[324855033,1714373482137,-500.0,0.00016712,2]
[324855034,1714373482147,-500.0,0.00016712,2]
[324855035,1714373482157,-500.0,0.00016712,2]
[324855036,1714373482167,-500.0,0.00016712,2]
[324855037,1714373482177,-500.0,0.00016712,2]
[324855038,1714373482187,-725.26,0.00016712,2]
[324855039,1714373482203,-844.8,0.00016712,2]
[324855040,1714373482213,-663.85,0.00016712,2]
[324855041,1714373482223,-590.93,0.00016712,2]
[324855042,1714373482235,-500.0,0.00016712,2]
[324855043,1714373482247,-500.0,0.00016712,2]
[324855044,1714373482257,-500.0,0.00016712,2]
[324855045,1714373482267,-963.94,0.00016712,2]
[324855046,1714373482276,-500.0,0.00016712,2]
[324855047,1714373482287,-790.18,0.00016712,2]
[324855048,1714373482299,-1385.15,0.00016712,2]
[324855049,1714373482310,-904.16,0.00016712,2]
[324855050,1714373482320,-556.73,0.00016712,2]
[324855051,1714373482330,-500.0,0.00016712,2]
[324855052,1714373482341,-2612.66,0.00016712,2]
[324855053,1714373482351,-670.19,0.00016712,2]
[324855054,1714373482361,-5705.05,0.00016712,2]
[324855055,1714373482371,-500.0,0.00016712,2]
[324855056,1714373482381,-3685.88,0.00016712,2]
[324855057,1714373482391,-500.0,0.00016712,2]
[324855058,1714373482403,-500.0,0.00016712,2]
[324855059,1714373482414,-3055.4,0.00016712,2]
[324855060,1714373482424,-500.0,0.00016712,2]
[324855061,1714373482436,-943.99,0.00016712,2]
[324855062,1714373482446,-500.0,0.00016712,2]
[324855063,1714373482457,-500.0,0.00016712,2]
[324855064,1714373482467,-676.52,0.00016712,2]
[324855065,1714373482478,-2057.47,0.00016712,2]
[324855066,1714373482490,-598.25,0.00016712,2]
[324855067,1714373482500,-1272.21,0.00016712,2]
[324855068,1714373482511,-7316.87,0.00016712,2]
[324855069,1714373482521,-726.9,0.00016712,2]
[324855070,1714373482531,-500.0,0.00016712,2]
[324855071,1714373482541,-797.11,0.00016712,2]
[324855072,1714373482551,-604.72,0.00016712,2]
[324855073,1714373482561,-500.0,0.00016712,2]
[324855074,1714373482571,-1382.46,0.00016712,2]
[324855075,1714373482582,-2899.35,0.00016712,2]
[324855076,1714373482592,-643.79,0.00016712,2]
[324855077,1714373482602,-1036.38,0.00016712,2]
[324855078,1714373482612,-500.0,0.00016712,2]
[324855079,1714373482622,-500.0,0.00016712,2]
[324855080,1714373482632,-500.0,0.00016712,2]
[324855081,1714373482642,-3783.63,0.00016712,2]
[324855082,1714373482653,-500.0,0.00016712,2]
[324855083,1714373482663,-567.55,0.00016712,2]
[324855084,1714373482674,-500.0,0.00016712,2]
[324855085,1714373482684,-1762.71,0.00016712,2]
[324855086,1714373482694,-544.02,0.00016712,2]
[324855087,1714373482704,-500.0,0.00016712,2]
[324855088,1714373482714,-909.69,0.00016712,2]
[324855089,1714373482724,-612.34632211,0.00016712,2]
[324855090,1714373482734,-1544.95,0.00016712,2]
[324855091,1714373482747,-566.35,0.00016712,2]
[324855092,1714373482757,-1632.08,0.00016712,2]
[324855093,1714373482882,-2536.93,0.00016712,2]
[324855094,1714373482894,-16167.34,0.00016712,2]
[324855095,1714373482904,-3184.94,0.00016712,2]
[324855096,1714373482914,-844.47,0.00016712,2]
[324855097,1714373482923,-1248.72,0.00016712,2]
[324855098,1714373482933,-705.06,0.00016712,2]
[324855099,1714373482943,-5367.9,0.00016712,2]
[324855100,1714373482955,-500.0,0.00016712,2]
[324855101,1714373482965,-603.55,0.00016712,2]
[324855102,1714373482975,-1338.49,0.00016712,2]
[324855103,1714373482985,-500.0,0.00016712,2]
[324855104,1714373482997,-752.29,0.00016712,2]
[324855105,1714373483007,-803.38,0.00016712,2]
[324855106,1714373483017,-500.0,0.00016712,2]
[324855107,1714373483028,-12574.48,0.00016712,2]
[324855108,1714373483038,-12192.24,0.00016712,2]
[324855109,1714373483049,-271.56587295,0.00016712,2]
[324855110,1714373483058,-998.22,0.00016712,2]
[324855111,1714373483068,-589.37,0.00016712,2]
[324855112,1714373483079,-5507.92,0.00016712,2]